lending/lending_fUSD_20241005
["ID","MTS","AMOUNT","RATE_DAILY","PERIOD"]
[339929976,1728160267951,-379.32947623,0.0004,30]
[339929977,1728160267962,-500.0,0.0004,30]
[339929978,1728160267971,-1009.53,0.0004,30]
[339929979,1728160267981,-500.0,0.0004,30]
[339929980,1728160267991,-500.0,0.0004,30]
[339929981,1728160268000,-787.17,0.0004,30]
[339929982,1728160268011,-413.87775815,0.0004,30]
[339929983,1728160268020,-500.0,0.0004,30]
[339929984,1728160268036,-500.0,0.0004,30]
[339929985,1728160268045,-681.86,0.0004,30]
[339929986,1728160268054,-529.07,0.0004,30]
[339929987,1728160268064,-500.0,0.0004,30]
[339929988,1728160268073,-441.38613976,0.0004,30]
[339929989,1728160268083,-995.14,0.0004,30]
[339929990,1728160268092,-500.0,0.0004,30]
[339929991,1728160268101,-1349.08,0.0004,30]
[339929992,1728160268110,-286.58330261,0.0004,30]
[339929993,1728160268119,-500.0,0.0004,30]
[339929994,1728160268129,-500.0,0.0004,30]
[339929995,1728160268139,-500.0,0.0004,30]
[339929996,1728160268148,-500.0,0.0004,30]
[339929997,1728160268158,-500.0,0.0004,30]
[339929998,1728160268167,-2800.0,0.00040068,60]
[339929999,1728160268176,-3800.0,0.00040068,60]
[339930000,1728160268186,-500.0,0.00040068,60]
[339930001,1728160268195,-1406.898625,0.00040198,120]
[339930002,1728160268205,-150.0,0.000402,41]
[339930003,1728160268214,-163.79500574,0.00040219,30]
[339930004,1728160268224,-800.0,0.00040219,120]
[339930005,1728160268233,-800.0,0.00040219,120]
[339930006,1728160268242,-1015.12729283,0.00040296,2]
[339930007,1728160268251,-233.100605,0.00040298,120]
[339930008,1728160268260,-233.100605,0.00040398,120]
[339930009,1728160268269,-429.0,0.000404,26]
[339930010,1728160268280,-150.0,0.000404,30]
[339930011,1728160268289,-909.3725,0.000404,2]
[339930012,1728160268299,-392.10820107,0.0004041,30]
[339930013,1728160268308,-500.0,0.0004041,30]
[339930014,1728160268317,-427.28637656,0.0004041,30]
[339930015,1728160268326,-646.75631315,0.0004041,30]
[339930016,1728160268335,-500.0,0.0004041,30]
[339930017,1728160268344,-500.0,0.0004041,30]
[339930018,1728160268354,-819.04,0.0004041,30]
[339930019,1728160268363,-500.0,0.0004041,30]
[339930020,1728160268372,-500.0,0.0004041,30]
[339930021,1728160268381,-500.0,0.0004041,30]
[339930022,1728160268390,-500.0,0.0004041,30]
[339930023,1728160268400,-559.49420949,0.0004041,30]
[339930024,1728160268409,-500.0,0.0004041,30]
[339930025,1728160268418,-500.0,0.0004041,30]
[339930026,1728160268427,-713.62,0.0004041,30]
[339930027,1728160268437,-500.0,0.0004041,30]
[339930028,1728160268447,-500.0,0.0004041,30]
[339930029,1728160268456,-500.0,0.0004041,30]
[339930030,1728160268465,-500.0,0.0004041,30]
[339930031,1728160268475,-284.2228207,0.0004041,30]
[339930032,1728160268485,-500.0,0.0004041,30]
[339930033,1728160268495,-647.02414632,0.0004041,30]
[339930034,1728160268505,-500.0,0.0004041,30]
[339930035,1728160268515,-500.0,0.0004041,30]
[339930036,1728160268524,-500.0,0.0004041,30]
[339930037,1728160268533,-500.0,0.0004041,30]
[339930038,1728160268543,-500.0,0.0004041,30]
[339930039,1728160268552,-500.0,0.0004041,30]
[339930040,1728160268561,-500.0,0.0004041,30]
[339930041,1728160268571,-500.0,0.0004041,30]
[339930042,1728160268580,-500.0,0.0004041,30]
[339930043,1728160268590,-711.55,0.0004041,30]
[339930044,1728160268599,-648.56479055,0.0004041,30]
[339930045,1728160268609,-500.0,0.0004041,30]
[339930046,1728160268758,-500.0,0.0004041,30]
[339930047,1728160268769,-500.0,0.0004041,30]
[339930048,1728160268779,-500.0,0.0004041,30]
[339930049,1728160268789,-500.0,0.0004041,30]
[339930050,1728160268799,-500.0,0.0004041,30]
[339930051,1728160268809,-500.0,0.0004041,30]
[339930052,1728160268819,-155.56471986,0.0004041,30]
[339930053,1728160268828,-238.14,0.0004041,30]
[339930054,1728160268838,-500.0,0.0004041,30]
[339930055,1728160268847,-629.57551784,0.0004041,30]
[339930056,1728160268857,-500.0,0.0004041,30]
[339930057,1728160268867,-521.85945226,0.0004041,30]
[339930058,1728160268877,-500.0,0.0004041,30]
[339930059,1728160268886,-500.0,0.0004041,30]
[339930060,1728160268896,-280.19666967,0.0004041,30]
[339930061,1728160268905,-500.0,0.0004041,30]
[339930062,1728160268915,-500.0,0.0004041,30]
[339930063,1728160268925,-664.29,0.0004041,30]
[339930064,1728160268935,-272.69,0.0004041,30]
[339930065,1728160268944,-500.0,0.0004041,30]
[339930066,1728160268953,-500.0,0.0004041,30]
[339930067,1728160268963,-500.0,0.0004041,30]
[339930068,1728160268972,-500.0,0.0004041,30]
[339930069,1728160268982,-500.0,0.0004041,30]
[339930070,1728160268991,-1092.13,0.0004041,30]
[339930071,1728160269001,-500.0,0.0004041,30]
[339930072,1728160269010,-500.0,0.0004041,30]
[339930073,1728160269020,-575.62,0.0004041,30]
[339930074,1728160269031,-500.0,0.0004041,30]
[339930075,1728160269041,-500.0,0.0004041,30]
[339930076,1728160269051,-500.0,0.0004041,30]
[339930077,1728160269061,-500.0,0.0004041,30]
[339930078,1728160269071,-500.0,0.0004041,30]
[339930079,1728160269081,-500.0,0.0004041,30]
[339930080,1728160269090,-740.53,0.0004041,30]
[339930081,1728160269099,-430.52245312,0.0004041,30]
[339930082,1728160269109,-500.0,0.0004041,30]
[339930083,1728160269119,-484.48733211,0.0004041,30]
[339930084,1728160269129,-500.0,0.0004041,30]
[339930085,1728160269138,-500.0,0.0004041,30]
[339930086,1728160269148,-500.0,0.0004041,30]
[339930087,1728160269158,-500.0,0.0004041,30]
[339930088,1728160269168,-1003.23,0.0004041,30]
[339930089,1728160269177,-500.0,0.0004041,30]
[339930090,1728160269187,-500.0,0.0004041,30]
[339930091,1728160269196,-644.28382,0.0004041,30]
[339930092,1728160269206,-500.0,0.0004041,30]
[339930093,1728160269216,-500.0,0.0004041,30]
[339930094,1728160269225,-773.95,0.0004041,30]
[339930095,1728160269235,-1041.19,0.0004041,30]
[339930096,1728160269244,-500.0,0.0004041,30]
[339930097,1728160269253,-855.74,0.0004041,30]
[339930098,1728160269263,-522.45,0.0004041,30]
[339930099,1728160269273,-500.0,0.0004041,30]
[339930100,1728160269283,-500.0,0.0004041,30]
[339930101,1728160269293,-500.0,0.0004041,24]
[339930102,1728160269302,-449.96512124,0.0004041,30]
[339930103,1728160269311,-528.13,0.0004041,30]
[339930104,1728160269321,-500.0,0.0004041,30]
[339930105,1728160269330,-500.0,0.0004041,30]
[339930106,1728160269340,-540.71,0.0004041,30]
[339930107,1728160269350,-1571.62,0.0004041,30]
[339930108,1728160269360,-500.0,0.0004041,30]
[339930109,1728160269369,-906.95,0.0004041,30]
[339930110,1728160269380,-500.0,0.0004041,30]
[339930111,1728160269390,-910.76,0.0004041,30]
[339930112,1728160269400,-1000.0,0.0004041,30]
[339930113,1728160269410,-500.0,0.0004041,30]
[339930114,1728160269419,-1100.09,0.0004041,30]
[339930115,1728160269428,-802.95,0.0004041,30]
[339930116,1728160269438,-843.51,0.0004041,30]
[339930117,1728160269447,-942.42,0.0004041,30]
[339930118,1728160269457,-398.21025512,0.0004041,30]
[339930119,1728160269466,-380.88922093,0.0004041,30]
[339930120,1728160269476,-500.0,0.0004041,30]
[339930121,1728160269485,-632.65256586,0.0004041,30]
[339930122,1728160269495,-500.0,0.0004041,30]
[339930123,1728160269504,-1026.8,0.0004041,30]
[339930124,1728160269514,-1281.74,0.0004041,30]
[339930125,1728160269524,-500.0,0.0004041,30]
[339930126,1728160269534,-500.0,0.0004041,30]
[339930127,1728160269544,-500.0,0.0004041,30]
[339930128,1728160269553,-994.5,0.0004041,30]
[339930129,1728160269563,-938.76,0.0004041,30]
[339930130,1728160269573,-500.0,0.0004041,30]
[339930131,1728160269583,-500.0,0.0004041,30]
[339930132,1728160269593,-1170.38,0.0004041,30]
[339930133,1728160269603,-912.82,0.0004041,30]
[339930134,1728160269613,-1002.9,0.0004041,30]
[339930135,1728160269622,-500.0,0.0004041,30]
[339930136,1728160269632,-500.0,0.0004041,30]
[339930137,1728160269642,-500.0,0.0004041,30]
[339930138,1728160269651,-500.0,0.0004041,30]
[339930139,1728160269661,-1084.38,0.0004041,30]
[339930140,1728160269670,-706.32,0.0004041,30]
[339930141,1728160269680,-1023.73,0.0004041,30]
[339930142,1728160269689,-500.0,0.0004041,30]
[339930143,1728160269698,-500.0,0.0004041,30]
[339930144,1728160269709,-500.0,0.0004041,30]
[339930145,1728160269719,-842.51,0.0004041,30]
[339930146,1728160269728,-500.0,0.0004041,30]
[339930147,1728160269738,-689.81,0.0004041,30]
[339930148,1728160269747,-532.86,0.0004041,30]
[339930149,1728160269756,-500.0,0.0004041,30]
[339930150,1728160269765,-500.0,0.0004041,30]
[339930151,1728160269775,-500.0,0.0004041,30]
[339930152,1728160269784,-500.0,0.0004041,30]
[339930153,1728160269793,-500.0,0.0004041,30]
[339930154,1728160269803,-1071.49,0.0004041,30]
[339930155,1728160269813,-500.0,0.0004041,30]
[339930156,1728160269823,-500.0,0.0004041,30]
[339930157,1728160269833,-1043.66,0.0004041,30]
[339930158,1728160269842,-500.0,0.0004041,30]
[339930159,1728160269852,-500.0,0.0004041,30]
[339930160,1728160269861,-500.0,0.0004041,30]
[339930161,1728160269870,-1009.53,0.0004041,30]
[339930162,1728160269880,-500.0,0.0004041,30]
[339930163,1728160269890,-500.0,0.0004041,30]
[339930164,1728160269900,-787.17,0.0004041,30]
[339930165,1728160269909,-500.0,0.0004041,30]
[339930166,1728160269918,-500.0,0.0004041,30]
[339930167,1728160269928,-681.86,0.0004041,30]
[339930168,1728160269938,-529.07,0.0004041,30]
[339930169,1728160269948,-500.0,0.0004041,30]
[339930170,1728160269957,-995.14,0.0004041,30]
[339930171,1728160269968,-500.0,0.0004041,30]
[339930172,1728160269977,-1349.08,0.0004041,30]
[339930173,1728160269987,-500.0,0.0004041,30]
[339930174,1728160269996,-465.79,0.0004041,30]
[339930175,1728160270006,-500.0,0.0004041,30]
[339930176,1728160270015,-525.53808641,0.0004041,30]
[339930177,1728160270025,-499.79243762,0.0004041,30]
[339930178,1728160270034,-4645.1454291,0.00040464,2]
[339930179,1728160270043,-151.100605,0.00040498,120]
[339930180,1728160270052,-233.100605,0.00040498,120]
[339930181,1728160270062,-160.21,0.00040548,120]
[339930182,1728160270071,-233.100605,0.00040598,120]
[339930183,1728160270080,-900.0,0.00040616,60]
[339930184,1728160270089,-30217.1789579,0.00040681,7]
[339930185,1728160270099,-233.100605,0.00040698,120]
[339930186,1728160270107,-1979.680886,0.00040721,11]
[339930187,1728160270117,-233.100605,0.00040798,120]
[339930188,1728160270126,-250000.0,0.000408,30]
[339930189,1728160270135,-859.0,0.000408,27]
[339930190,1728160270145,-151.0,0.000408,14]
[339930191,1728160270154,-1147.412068,0.000408,18]
[339930192,1728160270163,-151.0,0.000408,14]
[339930193,1728160270173,-151.0,0.000408,14]
[339930194,1728160270182,-151.0,0.000408,14]
[339930195,1728160270193,-151.0,0.000408,14]
[339930196,1728160270202,-306.53687176,0.00040821,30]
[339930197,1728160270211,-500.0,0.00040821,30]
[339930198,1728160270220,-500.0,0.00040821,30]
[339930199,1728160270229,-819.04,0.00040821,30]
[339930200,1728160270239,-246.36862324,0.00040821,30]
[339930201,1728160270248,-500.0,0.00040821,30]
[339930202,1728160270257,-445.26077116,0.00040821,30]
[339930203,1728160270266,-411.49811569,0.00040821,30]
[339930204,1728160270277,-500.0,0.00040821,30]
[339930205,1728160270286,-500.0,0.00040821,30]
[339930206,1728160270296,-713.62,0.00040821,30]
[339930207,1728160270305,-500.0,0.00040821,30]
[339930208,1728160270315,-500.0,0.00040821,30]
[339930209,1728160270324,-500.0,0.00040821,30]
[339930210,1728160270334,-228.19706466,0.00040821,30]
[339930211,1728160270343,-500.0,0.00040821,30]
[339930212,1728160270352,-500.0,0.00040821,30]
[339930213,1728160270362,-500.0,0.00040821,30]
[339930214,1728160270371,-500.0,0.00040821,30]
[339930215,1728160270380,-500.0,0.00040821,30]
[339930216,1728160270390,-500.0,0.00040821,30]
[339930217,1728160270399,-500.0,0.00040821,30]
[339930218,1728160270408,-500.0,0.00040821,30]
[339930219,1728160270418,-320.42,0.00040821,30]
[339930220,1728160270427,-500.0,0.00040821,30]
[339930221,1728160270437,-711.55,0.00040821,30]
[339930222,1728160270446,-500.0,0.00040821,30]
[339930223,1728160270455,-500.0,0.00040821,30]
[339930224,1728160270465,-500.0,0.00040821,30]
[339930225,1728160270474,-500.0,0.00040821,30]
[339930226,1728160270483,-500.0,0.00040821,30]
[339930227,1728160270492,-500.0,0.00040821,30]
[339930228,1728160270501,-515.90933057,0.00040821,30]
[339930229,1728160270511,-238.14,0.00040821,30]
[339930230,1728160270520,-500.0,0.00040821,30]
[339930231,1728160270531,-542.16126738,0.00040821,30]
[339930232,1728160270540,-500.0,0.00040821,30]
[339930233,1728160270549,-500.0,0.00040821,30]
[339930234,1728160270559,-500.0,0.00040821,30]
[339930235,1728160270568,-352.67317683,0.00040821,30]
[339930236,1728160270578,-664.29,0.00040821,30]
[339930237,1728160270587,-500.0,0.00040821,30]
[339930238,1728160270597,-500.0,0.00040821,30]
[339930239,1728160270606,-500.0,0.00040821,30]
[339930240,1728160270615,-500.0,0.00040821,30]
[339930241,1728160270625,-500.0,0.00040821,30]
[339930242,1728160270634,-1092.13,0.00040821,30]
[339930243,1728160270648,-500.0,0.00040821,30]
[339930244,1728160270658,-500.0,0.00040821,30]
[339930245,1728160270667,-575.62,0.00040821,30]
[339930246,1728160270676,-500.0,0.00040821,30]
[339930247,1728160270685,-500.0,0.00040821,30]
[339930248,1728160270694,-500.0,0.00040821,30]
[339930249,1728160270704,-500.0,0.00040821,30]
[339930250,1728160270716,-500.0,0.00040821,30]
[339930251,1728160270725,-500.0,0.00040821,30]
[339930252,1728160270734,-740.53,0.00040821,30]
[339930253,1728160270743,-500.0,0.00040821,30]
[339930254,1728160270753,-500.0,0.00040821,30]
[339930255,1728160270762,-500.0,0.00040821,30]
[339930256,1728160270771,-500.0,0.00040821,30]
[339930257,1728160270781,-250.35326282,0.00040821,30]
[339930258,1728160270792,-1003.23,0.00040821,30]
[339930259,1728160270801,-367.29979834,0.00040821,30]
[339930260,1728160270811,-500.0,0.00040821,30]
[339930261,1728160270821,-500.0,0.00040821,30]
[339930262,1728160270830,-500.0,0.00040821,30]
[339930263,1728160270840,-773.95,0.00040821,30]
[339930264,1728160270848,-1041.19,0.00040821,30]
[339930265,1728160270857,-500.0,0.00040821,30]
[339930266,1728160270866,-855.74,0.00040821,30]
[339930267,1728160270875,-522.45,0.00040821,30]
[339930268,1728160270884,-500.0,0.00040821,30]
[339930269,1728160270893,-500.0,0.00040821,30]
[339930270,1728160270902,-532.07094691,0.00040821,24]
[339930271,1728160270911,-528.13,0.00040821,30]
[339930272,1728160270920,-500.0,0.00040821,30]
[339930273,1728160270929,-620.06311758,0.00040821,30]
[339930274,1728160270938,-540.71,0.00040821,30]
[339930275,1728160270947,-1571.62,0.00040821,30]
[339930276,1728160270957,-500.0,0.00040821,30]
[339930277,1728160270966,-906.95,0.00040821,30]
[339930278,1728160270975,-645.74210428,0.00040821,30]
[339930279,1728160270987,-910.76,0.00040821,30]
[339930280,1728160270996,-1000.0,0.00040821,30]
[339930281,1728160271005,-473.86000001,0.00040821,30]
[339930282,1728160271015,-1100.09,0.00040821,30]
[339930283,1728160271025,-802.95,0.00040821,30]
[339930284,1728160271034,-843.51,0.00040821,30]
[339930285,1728160271043,-942.42,0.00040821,30]
[339930286,1728160271052,-500.0,0.00040821,30]
[339930287,1728160271061,-500.0,0.00040821,30]
[339930288,1728160271070,-1026.8,0.00040821,30]
[339930289,1728160271079,-1281.74,0.00040821,30]
[339930290,1728160271088,-500.0,0.00040821,30]
[339930291,1728160271098,-500.0,0.00040821,30]
[339930292,1728160271107,-500.0,0.00040821,30]
[339930293,1728160271116,-994.5,0.00040821,30]
[339930294,1728160271125,-938.76,0.00040821,30]
[339930295,1728160271134,-500.0,0.00040821,30]
[339930296,1728160271144,-500.0,0.00040821,30]
[339930297,1728160271153,-1170.38,0.00040821,30]
[339930298,1728160271162,-912.82,0.00040821,30]
[339930299,1728160271171,-1002.9,0.00040821,30]
[339930300,1728160271180,-500.0,0.00040821,30]
[339930301,1728160271190,-559.5097748,0.00040821,30]
[339930302,1728160271199,-500.0,0.00040821,30]
[339930303,1728160271208,-500.0,0.00040821,30]
[339930304,1728160271218,-1084.38,0.00040821,30]
[339930305,1728160271227,-706.32,0.00040821,30]
[339930306,1728160271235,-1023.73,0.00040821,30]
[339930307,1728160271244,-500.0,0.00040821,30]
[339930308,1728160271253,-500.0,0.00040821,30]
[339930309,1728160271262,-500.0,0.00040821,30]
[339930310,1728160271272,-842.51,0.00040821,30]
[339930311,1728160271290,-560.43128563,0.00040821,30]
[339930312,1728160271299,-689.81,0.00040821,30]
[339930313,1728160271308,-532.86,0.00040821,30]
[339930314,1728160271317,-500.0,0.00040821,30]
[339930315,1728160271325,-500.0,0.00040821,30]
[339930316,1728160271334,-500.0,0.00040821,30]
[339930317,1728160271343,-500.0,0.00040821,30]
[339930318,1728160271351,-500.0,0.00040821,30]
[339930319,1728160271360,-1071.49,0.00040821,30]
[339930320,1728160271369,-500.0,0.00040821,30]
[339930321,1728160271378,-500.0,0.00040821,30]
[339930322,1728160271387,-1043.66,0.00040821,30]
[339930323,1728160271397,-449.37,0.00040821,30]
[339930324,1728160271406,-500.0,0.00040821,30]
[339930325,1728160271415,-172.76299706,0.00040821,30]
[339930326,1728160271424,-1009.53,0.00040821,30]
[339930327,1728160271433,-500.0,0.00040821,30]
[339930328,1728160271443,-500.0,0.00040821,30]
[339930329,1728160271452,-787.17,0.00040821,30]
[339930330,1728160271461,-500.0,0.00040821,30]
[339930331,1728160271471,-500.0,0.00040821,30]
[339930332,1728160271480,-681.86,0.00040821,30]
[339930333,1728160271489,-529.07,0.00040821,30]
[339930334,1728160271498,-388.08077138,0.00040821,30]
[339930335,1728160271507,-995.14,0.00040821,30]
[339930336,1728160271515,-500.0,0.00040821,30]
[339930337,1728160271525,-1349.08,0.00040821,30]
[339930338,1728160271536,-500.0,0.00040821,30]
[339930339,1728160271546,-500.0,0.00040821,30]
[339930340,1728160271555,-500.0,0.0004084,120]
[339930341,1728160271563,-233.100605,0.00040898,120]
[339930342,1728160271572,-500.0,0.000409,30]
[339930343,1728160271582,-233.100605,0.00040998,120]
[339930344,1728160271591,-50000.0,0.00041,31]
[339930345,1728160271600,-50000.0,0.00041,41]
[339930346,1728160271610,-151.0,0.00041,14]
[339930347,1728160271620,-245.055532,0.00041,14]
[339930348,1728160271629,-151.0,0.00041,14]
[339930349,1728160271638,-151.0,0.00041,14]
[339930350,1728160271647,-295.22384,0.00041,14]
[339930351,1728160271656,-295.22384,0.00041,14]
[339930352,1728160271665,-151.0,0.00041,14]
[339930353,1728160271674,-151.0,0.00041,14]
[339930354,1728160271683,-271.495954,0.00041,14]
[339930355,1728160271692,-271.495954,0.00041,14]
[339930356,1728160271700,-260.444792,0.00041,14]
[339930357,1728160271709,-280.104999,0.00041,14]
[339930358,1728160271718,-280.104999,0.00041,14]
[339930359,1728160271727,-151.0,0.00041,14]
[339930360,1728160271736,-151.0,0.00041,14]
[339930361,1728160271745,-151.0,0.00041,14]
[339930362,1728160271754,-1000.0,0.00041,2]
[339930363,1728160271763,-151.0,0.00041,14]
[339930364,1728160271771,-151.0,0.00041,14]
[339930365,1728160271784,-151.0,0.00041,14]
[339930366,1728160271905,-151.0,0.00041,14]
[339930367,1728160271928,-151.0,0.00041,14]
[339930368,1728160271937,-151.0,0.00041,14]
[339930369,1728160271947,-151.0,0.00041,14]
[339930370,1728160271956,-2000.0,0.00041095,2]
[339930371,1728160271965,-179.44750584,0.00041095,60]
[339930372,1728160271975,-2839.9,0.00041096,2]
[339930373,1728160271984,-233.100605,0.00041098,120]
[339930374,1728160271994,-170.42685033,0.000411,120]
[339930375,1728160272004,-170.42685033,0.000411,120]
[339930376,1728160272013,-170.42685033,0.000411,120]
[339930377,1728160272024,-170.42685033,0.000411,120]
[339930378,1728160272033,-170.92,0.000411,120]
[339930379,1728160272043,-409.96594033,0.000411,120]
[339930380,1728160272052,-409.96594033,0.000411,120]
[339930381,1728160272061,-409.96594033,0.000411,120]
[339930382,1728160272071,-409.96594033,0.000411,120]
[339930383,1728160272080,-409.96594033,0.000411,120]
[339930384,1728160272089,-409.96594033,0.000411,120]
[339930385,1728160272099,-409.96594033,0.000411,120]
[339930386,1728160272108,-409.96594033,0.000411,120]
[339930387,1728160272118,-409.96594033,0.000411,120]
[339930388,1728160272128,-409.96594033,0.000411,120]
[339930389,1728160272137,-409.96594033,0.000411,120]
[339930390,1728160272148,-409.96594033,0.000411,120]
[339930391,1728160272157,-409.96594033,0.000411,120]
[339930392,1728160272167,-409.96594033,0.000411,120]
[339930393,1728160272176,-409.96594033,0.000411,120]
[339930394,1728160272186,-409.96594033,0.000411,120]
[339930395,1728160272195,-409.96594033,0.000411,120]
[339930396,1728160272204,-409.96594033,0.000411,120]
[339930397,1728160272214,-409.96594033,0.000411,120]
[339930398,1728160272223,-410.46,0.000411,120]
[339930399,1728160272233,-152.04,0.00041123,30]
[339930400,1728160272242,-2800.0,0.00041164,60]
[339930401,1728160272251,-3800.0,0.00041164,60]
[339930402,1728160272261,-500.0,0.00041164,60]
[339930403,1728160272271,-233.100605,0.00041198,120]
[339930404,1728160272283,-194.31786,0.000412,120]
[339930405,1728160272293,-151.73489001,0.00041232,120]
[339930406,1728160272302,-500.0,0.00041232,120]
[339930407,1728160272312,-819.04,0.00041232,30]
[339930408,1728160272321,-500.0,0.00041232,120]
[339930409,1728160272332,-500.0,0.00041232,120]
[339930410,1728160272342,-500.0,0.00041232,120]
[339930411,1728160272353,-713.62,0.00041232,120]
[339930412,1728160272363,-500.0,0.00041232,120]
[339930413,1728160272373,-500.0,0.00041232,120]
[339930414,1728160272382,-331.43621804,0.00041232,120]
[339930415,1728160272393,-500.0,0.00041232,120]
[339930416,1728160272402,-500.0,0.00041232,120]
[339930417,1728160272412,-500.0,0.00041232,120]
[339930418,1728160272421,-500.0,0.00041232,120]
[339930419,1728160272431,-500.0,0.00041232,120]
[339930420,1728160272440,-500.0,0.00041232,120]
[339930421,1728160272450,-500.0,0.00041232,120]
[339930422,1728160272459,-500.0,0.00041232,120]
[339930423,1728160272469,-500.0,0.00041232,120]
[339930424,1728160272478,-711.55,0.00041232,120]
[339930425,1728160272487,-500.0,0.00041232,120]
[339930426,1728160272497,-500.0,0.00041232,120]
[339930427,1728160272506,-500.0,0.00041232,30]
[339930428,1728160272515,-500.0,0.00041232,120]
[339930429,1728160272524,-500.0,0.00041232,120]
[339930430,1728160272534,-500.0,0.00041232,120]
[339930431,1728160272543,-238.14,0.00041232,120]
[339930432,1728160272553,-500.0,0.00041232,120]
[339930433,1728160272562,-509.03437469,0.00041232,120]
[339930434,1728160272571,-500.0,0.00041232,120]
[339930435,1728160272580,-500.0,0.00041232,120]
[339930436,1728160272589,-664.29,0.00041232,120]
[339930437,1728160272598,-250.5016953,0.00041232,120]
[339930438,1728160272607,-500.0,0.00041232,120]
[339930439,1728160272616,-500.0,0.00041232,30]
[339930440,1728160272626,-500.0,0.00041232,120]
[339930441,1728160272635,-500.0,0.00041232,120]
[339930442,1728160272644,-1092.13,0.00041232,120]
[339930443,1728160272654,-500.0,0.00041232,120]
[339930444,1728160272663,-500.0,0.00041232,120]
[339930445,1728160272673,-575.62,0.00041232,120]
[339930446,1728160272682,-500.0,0.00041232,120]
[339930447,1728160272692,-500.0,0.00041232,120]
[339930448,1728160272701,-500.0,0.00041232,120]
[339930449,1728160272714,-426.7843579,0.00041232,120]
[339930450,1728160272725,-500.0,0.00041232,120]
[339930451,1728160272736,-500.0,0.00041232,120]
[339930452,1728160272746,-740.53,0.00041232,120]
[339930453,1728160272755,-500.0,0.00041232,120]
[339930454,1728160272764,-500.0,0.00041232,120]
[339930455,1728160272774,-500.0,0.00041232,120]
[339930456,1728160272784,-500.0,0.00041232,120]
[339930457,1728160272793,-1003.23,0.00041232,120]
[339930458,1728160272804,-500.0,0.00041232,120]
[339930459,1728160272815,-500.0,0.00041232,120]
[339930460,1728160272825,-576.01520233,0.00041232,120]
[339930461,1728160272834,-773.95,0.00041232,120]
[339930462,1728160272844,-1041.19,0.00041232,120]
[339930463,1728160272854,-500.0,0.00041232,120]
[339930464,1728160272864,-855.74,0.00041232,120]
[339930465,1728160272874,-522.45,0.00041232,120]
[339930466,1728160272883,-500.0,0.00041232,120]
[339930467,1728160272892,-329.17562049,0.00041232,120]
[339930468,1728160272901,-528.13,0.00041232,120]
[339930469,1728160272910,-500.0,0.00041232,120]
[339930470,1728160272919,-540.71,0.00041232,120]
[339930471,1728160272928,-1571.62,0.00041232,120]
[339930472,1728160272937,-157.29290658,0.00041232,120]
[339930473,1728160272947,-906.95,0.00041232,120]
[339930474,1728160272956,-910.76,0.00041232,120]
[339930475,1728160272965,-1000.0,0.00041232,120]